bitfinex/quotes_ETHUSD_20220213
["timestamp","ask_amount","ask_price","bid_price","bid_amount"]
[1644763455766,0.1711,2922.5,2921.3,0.1711]
[1644763455967,0.94609172,2922.4,2921.2,0.1711]
[1644763456175,0.1711,2922.3,2921.5,0.85564]
[1644763456369,0.1711,2922.3,2921.5,1.45564]
[1644763456568,0.1711,2922.3,2921.8,0.01081346]
[1644763456970,0.18190905,2922.9,2921.8,0.01081346]
[1644763457169,0.01080905,2922.9,2921.9,1.71076]
[1644763457405,0.01080905,2922.9,2922.0,0.3]
[1644763457604,0.171,2923.0,2922.0,0.3]
[1644763457804,0.00630045,2922.9,2922.0,0.3]
[1644763458209,0.00630045,2922.9,2921.9,0.3]
[1644763458404,0.00630045,2922.9,2922.2,0.85532]
[1644763458604,0.171,2923.0,2922.2,1.15532]
[1644763458908,0.00630055,2922.9,2922.2,1.45532]
[1644763459709,1.07715757,2923.0,2922.2,1.45532]
[1644763460109,0.01081573,2922.9,2922.4,0.01081774]
[1644763460714,0.00115488,2922.8,2922.4,0.01081774]
[1644763460912,0.00115488,2922.8,2922.3,0.00253502]
[1644763461157,0.00115488,2922.8,2922.5,0.01081766]
[1644763461959,0.00115488,2922.8,2922.5,0.01335268]
[1644763462169,0.00115488,2922.8,2922.5,0.00253502]
[1644763462360,0.00115488,2922.8,2922.4,0.85535]
[1644763462560,0.00115488,2922.8,2922.5,0.01081777]
[1644763463365,0.00115488,2922.8,2922.3,1.15791502]
[1644763463562,0.00115488,2922.8,2922.5,0.01081777]
[1644763464564,0.00115488,2922.8,2922.3,0.30253502]
[1644763464816,0.00115488,2922.8,2922.5,0.01081777]
[1644763465816,0.00115488,2922.8,2922.0,0.00253502]
[1644763466018,0.00115488,2922.8,2922.5,0.01081777]
[1644763466918,0.00115488,2922.8,2922.1,0.85545]
[1644763467117,0.00115488,2922.8,2922.2,0.00253502]
[1644763467318,0.00115488,2922.8,2922.5,0.01081777]
[1644763468120,0.00115488,2922.8,2922.2,0.00253502]
[1644763468574,0.00115488,2922.8,2922.5,0.00999983]
[1644763468959,0.01999965,2922.4,2922.2,0.00253502]
[1644763469161,0.01999965,2922.4,2922.1,0.6]
[1644763469363,0.01999965,2922.4,2922.0,0.00253502]
[1644763469566,0.01999965,2922.4,2921.8,0.00253502]
[1644763469963,0.1711,2922.3,2921.8,0.00253502]
[1644763470161,1.02685,2922.3,2921.8,0.00253502]
[1644763471171,0.85574,2922.2,2921.8,0.00253502]
[1644763471565,0.1711,2922.3,2921.8,0.00253502]
[1644763471864,0.01999965,2922.4,2921.8,0.00253502]
[1644763472066,0.01999965,2922.4,2921.9,0.01081859]
[1644763473109,0.01999965,2922.4,2921.8,0.00253502]
[1644763473310,0.01999965,2922.4,2922.0,0.00451981]
[1644763473511,0.87566965,2922.4,2922.0,0.00451981]
[1644763473714,0.01999965,2922.4,2922.0,0.00451981]
[1644763474112,0.01999965,2922.4,2921.8,0.00253502]
[1644763474512,0.01999965,2922.4,2922.1,0.00451973]
[1644763475412,0.01999965,2922.4,2921.7,0.00253502]
[1644763475616,0.01999965,2922.4,2922.1,0.00451966]
[1644763475813,0.00122712,2922.3,2922.1,0.00451966]
[1644763476274,0.00122712,2922.3,2922.2,0.85549]
[1644763476471,1.53867826,2923.1,2922.2,23.48089]
[1644763476770,1.53867826,2923.1,2922.3,20.19]
[1644763476970,0.01082197,2922.8,2922.4,0.171]
[1644763477172,0.01082197,2922.8,2922.4,1.171]
[1644763477371,0.01082197,2922.8,2922.5,0.85508]
[1644763477571,0.01082197,2922.8,2922.6,0.171]
[1644763477872,1.53867826,2923.1,2922.6,0.471]
[1644763478070,0.01082275,2922.8,2922.6,0.3]
[1644763478273,0.01082275,2922.8,2922.7,0.85515]
[1644763478489,0.01082275,2922.8,2922.7,1.02615]
[1644763478673,0.01082275,2922.8,2922.7,2.18133]
[1644763479076,1.53867826,2923.1,2922.7,2.18133]
[1644763479278,0.01082267,2922.9,2922.7,1.15515]
[1644763479918,0.01082267,2922.9,2922.8,0.85521]
[1644763480322,1.53867826,2923.1,2922.8,1.71042]
[1644763480517,0.01046539,2923.0,2922.8,1.71042]
[1644763480721,0.01046539,2923.0,2922.9,0.6]
[1644763480917,0.01046539,2923.0,2922.9,1.45515]
[1644763481120,0.01046539,2923.0,2922.9,4.99371337]
[1644763481318,0.01046539,2923.0,2922.9,1.45515]
[1644763481521,1.53867826,2923.1,2922.9,1.45515]
[1644763481716,1.54849837,2923.1,2922.9,1.62615]
[1644763482718,1.53867826,2923.1,2922.9,1.62615]
[1644763482919,1.5484983,2923.1,2922.9,1.62615]
[1644763483763,1.5484983,2923.1,2922.9,1.45515]
[1644763484065,1.53867826,2923.1,2922.9,1.45515]
[1644763484264,1.54831575,2923.1,2922.9,1.45515]
[1644763485166,1.53867826,2923.1,2922.9,1.45515]
[1644763485367,1.54831575,2923.1,2922.9,1.45515]
[1644763485866,0.00114463,2923.0,2922.9,1.45515]
[1644763486067,1.5149774,2923.1,2923.0,2.6]
[1644763486268,1.50533991,2923.1,2922.9,1.45515]
[1644763486673,1.51504367,2923.1,2922.9,1.45515]
[1644763487512,1.47094042,2923.1,2922.9,1.45515]
[1644763487712,1.47094042,2923.1,2922.9,21.51615]
[1644763487913,1.48065643,2923.1,2922.9,1.62615]
[1644763488513,1.48065643,2923.1,2923.0,3.53528708]
[1644763488718,1.47094042,2923.1,2922.9,1.62724129]
[1644763488917,1.48065643,2923.1,2922.9,1.62724129]
[1644763489220,1.48065643,2923.1,2923.0,28.44793515]
[1644763489417,0.8558,2923.9,2923.1,24.24]
[1644763489617,0.8558,2923.9,2923.3,0.8549]
[1644763489916,0.8558,2923.9,2923.4,3.72993607]
[1644763490117,0.8558,2923.9,2923.4,4.66072812]
[1644763490315,7.48,2924.4,2923.5,1.3]
[1644763490515,7.48,2924.4,2923.8,0.85481]
[1644763490716,7.48,2924.4,2923.9,0.85481]
[1644763490918,7.48,2924.4,2923.9,1.85481]
[1644763491196,0.0204043,2925.1,2924.1,24.59]
[1644763491392,0.0204043,2925.1,2924.3,24.89]
[1644763491393,7.5004043,2925.1,2924.3,24.89]
[1644763491588,7.5004043,2925.1,2924.4,19.89]
[1644763491794,7.5004043,2925.1,2924.5,1.0]
[1644763491987,7.5004043,2925.1,2924.6,0.1708]
[1644763492391,7.5004043,2925.1,2924.4,2.15438]
[1644763492887,7.5004043,2925.1,2924.4,1.15438]
[1644763493290,0.0204043,2925.1,2924.6,1.7092]
[1644763493693,0.0204043,2925.1,2924.6,2.3092]
[1644763493892,0.00630485,2924.9,2924.6,2.3092]
[1644763494397,0.00630485,2924.9,2924.7,1.70915]
[1644763494593,0.00630485,2924.9,2924.8,0.6]
[1644763494806,0.0204043,2925.1,2924.8,2.30908]
[1644763495006,0.01082108,2924.9,2924.8,2.30908]
[1644763496012,0.00110566,2925.0,2924.8,2.30908]
[1644763496210,0.01192666,2925.0,2924.8,2.30908]
[1644763496410,0.01192666,2925.0,2924.8,1.70908]
[1644763496616,0.1708,2924.9,2923.7,0.25]
[1644763496814,1.03804176,2924.9,2923.7,0.25]
[1644763497015,3.5,2924.8,2923.7,0.25]
[1644763497212,0.18309176,2924.9,2923.7,0.25]
[1644763497414,0.1708,2924.9,2923.7,0.25]
[1644763497613,0.01082185,2924.4,2923.7,0.25]
[1644763497813,0.01082185,2924.4,2923.7,0.1708]
[1644763498017,0.01082185,2924.4,2923.8,1.70989]
[1644763498218,0.01082185,2924.4,2923.8,2.30989]
[1644763498417,6.57660566,2925.0,2923.8,1.45497]
[1644763498659,0.01082216,2924.2,2923.8,1.45497]
[1644763499059,0.01082216,2924.2,2923.9,1.70963]
[1644763499462,0.01082216,2924.2,2923.9,2.00963]
[1644763499666,6.31054331,2925.0,2924.0,0.85481]
[1644763499962,0.01082224,2924.2,2924.0,1.15481]
[1644763500765,4.0999663,2925.0,2924.0,1.15481]
[1644763500965,0.00117964,2924.7,2924.3,0.85485]
[1644763501164,0.86619838,2924.5,2924.3,0.85485]
[1644763501373,0.86619838,2924.5,2923.5,1.70998]
[1644763501568,3.671,2924.4,2923.5,1.70998]
[1644763501768,3.971,2924.4,2923.1,0.171]
[1644763501966,1.0,2924.3,2923.1,0.171]
[1644763502172,0.91524992,2924.0,2923.1,0.171]
[1644763502412,0.171,2924.2,2923.4,0.85511]
[1644763502413,0.01018864,2924.1,2923.4,0.85511]
[1644763503311,0.171,2924.2,2923.4,1.15511]
[1644763503511,0.01018895,2923.9,2923.6,0.85502]
[1644763503712,0.01018895,2923.9,2923.6,1.15502]
[1644763503909,0.01018895,2923.9,2923.7,1.70978]
[1644763504410,0.171,2924.2,2923.8,0.85491]
[1644763504612,3.30999842,2924.6,2923.8,0.85491]
[1644763504817,0.01018887,2923.9,2923.8,1.45491]
[1644763505717,0.17217964,2924.7,2923.8,1.45491]
[1644763505718,0.00116554,2924.2,2924.0,0.85483]
[1644763506761,0.00116554,2924.2,2923.8,2.30985]
[1644763506962,0.01139134,2924.2,2923.9,0.85492]
[1644763507367,0.01139134,2924.2,2924.0,20.0608]
[1644763507562,0.01139134,2924.2,2924.0,0.4708]
[1644763507762,0.01139134,2924.2,2924.0,2.18025]
[1644763507962,0.01139134,2924.2,2924.0,2.38025]
[1644763507963,0.00116554,2924.2,2924.0,2.38025]
[1644763508164,0.00116554,2924.2,2924.1,0.85473]
[1644763508366,0.01139134,2924.2,2924.1,0.85473]
[1644763509164,0.00116554,2924.2,2924.1,2.83191826]
[1644763509364,0.00116554,2924.2,2924.1,3.83191826]
[1644763509565,0.00116554,2924.2,2924.1,3.00271826]
[1644763510015,0.0204043,2925.1,2925.0,1.02217874]
[1644763510213,0.0204043,2925.1,2925.0,0.16750874]
[1644763510612,3.18353335,2925.1,2925.0,0.16750874]
[1644763510812,5.10380382,2925.1,2925.0,0.16750874]
[1644763511013,5.10380382,2925.1,2924.1,2.22718826]
[1644763511217,1.0,2925.0,2924.2,0.8549]
[1644763511416,3.29572409,2924.9,2924.1,1.97718826]
[1644763511818,1.0,2924.8,2924.1,1.97718826]
[1644763512224,1.0,2924.8,2924.1,2.83213826]
[1644763512421,1.0,2925.0,2924.1,2.83213826]
[1644763513023,3.19809941,2924.9,2924.1,2.83213826]
[1644763513226,1.0,2925.0,2924.1,2.83213826]
[1644763513424,0.1708,2924.9,2924.1,2.83213826]
[1644763514066,0.1708,2924.9,2924.1,1.84354413]
[1644763514264,0.0108245,2924.6,2924.2,0.85485]
[1644763514464,0.0108245,2924.6,2924.5,1.97718826]
[1644763515269,0.1708,2924.9,2924.5,1.97718826]
[1644763515467,0.01082442,2924.7,2924.5,1.97718826]
[1644763515768,0.01190694,2924.7,2924.5,1.97718826]
[1644763516368,3.1822469,2924.7,2924.5,1.97718826]
[1644763516569,3.19307125,2924.7,2924.5,0.42549998]
[1644763516768,3.36387125,2924.7,2924.5,0.42549998]
[1644763517167,3.35628615,2924.7,2924.5,0.42549998]
[1644763517616,3.3454618,2924.7,2924.5,0.42549998]
[1644763517919,3.3454618,2924.7,2923.5,0.18162906]
[1644763517920,1.98773836,2924.6,2923.5,0.18162906]
[1644763518215,5.0,2924.4,2923.5,0.01082906]
[1644763518414,4.99393814,2924.3,2923.5,0.01082906]
[1644763518614,5.42293814,2924.3,2923.5,0.01082906]
[1644763518814,0.171,2924.2,2923.1,1.71014]
[1644763519013,0.171,2924.2,2923.6,0.85507]
[1644763519713,0.171,2924.2,2923.6,0.85502]
[1644763519913,0.171,2924.3,2923.6,0.85502]
[1644763520114,1.0,2924.4,2923.8,0.855]
[1644763520715,3.16503067,2924.3,2923.8,0.855]
[1644763520913,5.27942561,2924.5,2923.5,0.00430341]
[1644763521164,1.45486707,2924.4,2923.7,0.85507]
[1644763521364,3.27398419,2924.3,2923.7,0.85507]
[1644763521769,3.27398419,2924.3,2923.5,0.00430341]
[1644763521770,2.06755194,2924.2,2923.5,0.00430341]
[1644763522173,1.0,2924.2,2923.5,0.85943341]
[1644763522370,1.0,2924.4,2923.5,0.85513]
[1644763522571,1.62592277,2924.3,2923.5,0.85513]
[1644763522771,3.671,2924.3,2923.5,0.86596017]
[1644763522973,1.45499761,2924.2,2923.5,0.01083017]
[1644763523175,0.171,2924.1,2923.5,0.01083017]
[1644763523375,1.45499761,2924.0,2923.5,0.01083017]
[1644763523571,0.171,2924.1,2922.7,0.8544]
[1644763523773,1.45505467,2924.0,2923.5,0.01083007]
[1644763524171,2.45505467,2924.0,2923.5,0.01083007]
[1644763524371,1.0,2924.0,2923.5,0.01083007]
[1644763524573,3.15605686,2923.9,2923.5,0.01083007]
[1644763524816,1.0,2923.8,2923.1,1.7103]
[1644763525009,1.06443311,2923.6,2923.5,0.01082996]
[1644763525214,4.67705687,2923.6,2923.5,0.01082996]
[1644763525607,5.67705687,2923.6,2923.5,0.01082996]
[1644763526008,5.67705687,2923.6,2922.6,0.25]
[1644763526212,5.67705687,2923.6,2923.0,0.01815112]
[1644763526213,0.85534,2923.4,2923.0,0.01815112]
[1644763526412,4.14580052,2923.4,2923.0,0.01815112]
[1644763527213,1.0,2923.3,2922.2,0.3]
[1644763527416,3.21991037,2923.2,2922.5,1.71061]
[1644763527612,1.0,2923.3,2923.1,0.01083983]
[1644763528215,3.15145339,2923.2,2923.1,0.01083983]
[1644763528419,0.85534,2923.4,2922.8,0.85532]
[1644763528672,1.0,2923.5,2923.1,0.01083983]
[1644763528867,2.4174,2923.7,2923.1,0.01083983]
[1644763529066,3.25749063,2923.6,2923.1,0.01083983]
[1644763529470,1.0,2923.5,2923.1,0.01083983]
[1644763529666,4.54605009,2923.8,2923.0,0.85525]
[1644763529869,1.02628,2923.6,2923.2,0.0108396]
[1644763530068,1.14215307,2923.3,2923.2,0.0108396]
[1644763530270,5.06281986,2923.3,2923.2,0.0108396]
[1644763530471,5.36394226,2923.3,2923.2,0.0108396]
[1644763530671,6.36394226,2923.3,2923.2,0.0108396]
[1644763530870,6.36394226,2923.3,2922.1,2.56881502]
[1644763531073,1.171,2923.2,2923.1,0.01083975]
[1644763531271,4.66926043,2923.2,2923.1,0.01083975]
[1644763532072,4.66926043,2923.2,2922.1,1.71085]
[1644763532312,4.49826043,2923.2,2923.0,0.01083991]
[1644763532511,3.1620817,2923.1,2923.0,0.01083991]
[1644763532911,4.1620817,2923.1,2923.0,0.01083991]
[1644763533113,3.1620817,2923.1,2922.1,1.71085]
[1644763533314,1.171,2923.0,2922.1,1.71085]
[1644763533518,1.171,2923.0,2922.9,0.01084006]
[1644763533721,4.26869085,2923.0,2922.9,0.01084006]
[1644763533919,4.25561097,2923.0,2922.9,0.01084006]
[1644763534417,4.25561097,2923.0,2922.5,0.85539]
[1644763534617,4.25561097,2923.0,2922.8,0.01084022]
[1644763534817,1.0,2923.0,2922.8,0.01084022]
[1644763535217,1.0,2923.1,2922.8,0.01084022]
[1644763535617,0.5,2923.0,2922.3,2.56611]
[1644763535817,0.5,2923.0,2922.8,0.01084022]
[1644763536665,3.65166258,2923.0,2922.8,0.01084022]
[1644763536863,0.96970517,2922.8,2922.3,1.71073]
[1644763537064,0.96970517,2922.8,2922.3,1.75409769]
[1644763537466,3.22421752,2922.7,2922.3,0.04336769]
[1644763537664,1.35557,2922.6,2922.3,0.04336769]
[1644763537863,4.41208245,2922.5,2922.3,0.04336769]
[1644763538066,4.41208245,2922.5,2922.0,0.25]
[1644763538067,3.66276914,2922.4,2922.0,0.25]
[1644763538264,3.66276914,2922.4,2922.3,0.01084099]
[1644763538665,4.66276914,2922.4,2922.3,0.01084099]
[1644763539265,4.66276914,2922.4,2921.5,0.00253502]
[1644763539566,4.66276914,2922.4,2922.2,0.01084115]
[1644763539567,1.0,2922.4,2922.2,0.01084115]
[1644763539816,2.6293,2922.6,2922.2,0.01084115]
[1644763540021,1.6293,2922.6,2922.2,0.01084115]
[1644763540423,3.16557879,2922.5,2922.1,0.85551]
[1644763540620,3.1644026,2922.5,2922.3,0.01084107]
[1644763540821,3.29423581,2922.5,2922.3,0.01084107]
[1644763541622,3.29423581,2922.5,2921.9,0.85802502]
[1644763541823,3.29423581,2922.5,2922.3,0.01084107]
[1644763542022,0.5,2922.6,2922.5,0.00140061]
[1644763542423,3.76398573,2922.6,2922.5,0.00140061]
[1644763542825,0.5,2922.6,2922.5,0.00140061]
[1644763547310,0.49843353,2922.6,2922.5,0.00140061]
[1644763549919,0.49843353,2922.6,2922.3,0.81771145]
[1644763550119,0.49843353,2922.6,2922.4,1.71071]
[1644763550418,0.49843353,2922.6,2922.4,1.72155084]
[1644763550621,0.49953617,2922.6,2922.4,1.72155084]
[1644763551268,0.49953617,2922.6,2921.8,0.00253502]
[1644763551269,4.75,2922.4,2921.8,0.00253502]
[1644763551466,4.75,2922.4,2922.3,0.0045326]
[1644763552465,4.75,2922.4,2922.0,0.85556]
[1644763552665,0.98985211,2922.2,2921.8,0.00253502]
[1644763553066,0.98985211,2922.2,2921.3,0.85820502]
[1644763553265,0.98985211,2922.2,2921.4,1.7113]
[1644763553466,3.17598582,2922.1,2921.4,1.71383502]
[1644763553665,3.17598582,2922.1,2921.6,0.85566]
[1644763555109,3.17598582,2922.1,2921.7,0.01084192]
[1644763555310,3.17598582,2922.1,2921.7,0.86902694]
[1644763555512,3.17598582,2922.1,2921.7,0.86649192]
[1644763555714,3.17055555,2922.3,2921.7,0.86649192]
[1644763555914,0.1711,2922.3,2921.7,0.86649192]
[1644763556115,0.1711,2922.3,2921.8,0.00253502]
[1644763556315,0.1711,2922.3,2921.9,0.86643169]
[1644763557317,0.1711,2922.3,2921.9,0.85559]
[1644763557618,0.1711,2922.3,2922.0,0.01084153]
[1644763557818,0.91311889,2922.4,2922.0,0.01084153]
[1644763558418,0.91311889,2922.4,2921.3,0.00253502]
[1644763558665,0.00109699,2922.4,2922.1,0.01084138]
[1644763559360,0.00109699,2922.4,2922.1,0.86637138]
[1644763559565,0.00109699,2922.4,2922.1,0.85553]
[1644763559966,0.00109699,2922.4,2922.1,0.0108413]
[1644763560366,1.00109699,2922.4,2922.1,0.0108413]
[1644763560568,0.00109699,2922.4,2922.1,0.0108413]
[1644763560767,0.00109699,2922.4,2921.3,0.00253502]
[1644763560768,1.00109699,2922.4,2921.3,0.00253502]
[1644763560967,0.00109134,2922.2,2921.3,0.00253502]
[1644763561166,0.00109134,2922.2,2922.1,0.0108413]
[1644763561965,0.00109134,2922.2,2921.6,0.00253502]
[1644763562169,0.00109134,2922.2,2921.3,0.00253502]
[1644763562409,0.00109134,2922.2,2922.0,0.01084146]
[1644763562909,0.00109134,2922.2,2922.0,0.86641146]
[1644763563210,0.00109134,2922.2,2921.8,0.00253502]
[1644763563211,1.18293588,2922.1,2921.8,0.00253502]
[1644763563417,1.18293588,2922.1,2922.0,0.01084153]
[1644763563418,2.20973588,2922.1,2922.0,0.01084153]
[1644763563610,1.35403588,2922.1,2922.0,0.01084153]
[1644763564414,1.18293588,2922.1,2921.8,0.00253502]
[1644763564616,1.35403588,2922.1,2921.9,0.01084161]
[1644763565416,3.47860286,2922.0,2921.9,0.01084161]
[1644763565614,4.33443286,2922.0,2921.3,0.00253502]
[1644763565818,1.094882,2921.6,2921.4,0.04337326]
[1644763566863,3.21451965,2921.5,2921.1,0.00253502]
[1644763567063,1.094882,2921.6,2921.4,0.01084246]
[1644763567264,4.22575372,2921.6,2921.4,0.01084246]
[1644763567466,1.094882,2921.6,2921.4,0.01084246]
[1644763568064,1.094882,2921.6,2921.3,0.00253502]
[1644763568264,1.094882,2921.6,2921.4,0.01084246]
[1644763569064,3.13131578,2921.5,2921.4,0.01084246]
[1644763569284,5.43682022,2921.5,2921.2,0.00253502]
[1644763569466,5.43682022,2921.5,2921.4,0.01084246]
[1644763569910,5.73682022,2921.5,2921.4,0.01084246]
[1644763570113,5.43682022,2921.5,2921.4,0.01084246]
[1644763570311,6.29273022,2921.5,2921.4,0.01084246]
[1644763570611,6.29273022,2921.5,2921.3,0.01084254]
[1644763570612,0.00106874,2921.4,2921.3,0.01084254]
[1644763570811,3.44178068,2921.4,2921.3,0.01084254]
[1644763571614,0.00106874,2921.4,2921.2,0.00253502]
[1644763571813,0.99377447,2921.5,2921.2,0.01084269]
[1644763572414,3.19666666,2921.4,2921.2,0.01084269]
[1644763572814,5.12048204,2921.6,2921.1,0.85834502]
[1644763573016,5.04277415,2921.6,2921.2,0.01084277]
[1644763573220,1.88396579,2921.6,2921.2,0.01337779]
[1644763573663,1.88396579,2921.6,2921.3,0.85575]
[1644763574258,1.88396579,2921.6,2921.3,0.86659254]
[1644763574459,1.88396579,2921.6,2921.3,0.01084254]
[1644763574657,3.38166337,2921.8,2921.3,0.01084254]
[1644763575263,3.38166337,2921.8,2921.2,0.00253502]
[1644763575461,3.38166337,2921.8,2921.4,0.01084239]
[1644763576260,3.38166337,2921.8,2921.5,0.8557]
[1644763576462,1.0,2922.0,2921.5,0.8557]
[1644763576662,0.1711,2921.9,2921.5,0.86654231]
[1644763576861,0.1711,2921.9,2921.6,0.00253502]
[1644763577063,0.1711,2921.9,2921.5,0.01084231]
[1644763577513,1.10263927,2921.8,2921.5,0.01084231]
[1644763577709,0.1711,2921.7,2921.1,0.00253502]
[1644763577915,0.1711,2921.7,2921.6,0.01084215]
[1644763578915,0.1711,2921.7,2921.1,0.00253502]
[1644763579114,0.1711,2921.7,2921.5,0.01084223]
[1644763579512,1.02696,2921.7,2921.5,0.01084223]
[1644763579714,3.21724057,2921.6,2921.5,0.01084223]
[1644763580219,3.21724057,2921.6,2921.4,0.01084239]
[1644763580615,0.85596,2921.5,2921.4,0.01084239]
[1644763580814,4.90598192,2921.5,2921.4,0.01084239]
[1644763581066,4.73488192,2921.5,2921.4,0.01084239]
[1644763581265,3.87892192,2921.5,2921.1,0.00253502]
[1644763581462,3.51173083,2921.7,2921.3,0.01084254]
[1644763582063,0.85585,2921.5,2921.3,0.01084254]
[1644763582565,0.85585,2921.5,2921.1,0.00253502]
[1644763582765,4.03698393,2921.4,2921.3,0.01084262]
[1644763582967,4.20808393,2921.4,2921.3,0.01084262]
[1644763583165,5.06409393,2921.4,2921.3,0.01084262]
[1644763583665,5.06409393,2921.4,2921.1,0.00253502]
[1644763583666,5.92012393,2921.4,2921.1,0.00253502]
[1644763583866,5.06411393,2921.4,2921.2,0.01084269]
[1644763584065,3.28125,2921.3,2921.2,0.01084269]
[1644763584806,3.28125,2921.3,2921.1,0.00253502]
[1644763585007,4.13729,2921.3,2921.1,0.01084285]
[1644763585205,3.26912416,2921.2,2921.1,0.01084285]
[1644763585406,4.12516416,2921.2,2921.1,0.01084285]
[1644763585609,3.12019375,2921.2,2921.1,0.01084285]
[1644763586013,3.12019375,2921.2,2921.0,11.08388736]
[1644763586014,4.7,2921.1,2921.0,11.08388736]
[1644763586212,4.7,2921.1,2921.0,10.91054051]
[1644763586213,8.3711,2921.1,2921.0,10.91054051]
[1644763586411,4.8711,2921.1,2921.0,5.62286715]
[1644763587011,0.1711,2921.1,2921.0,5.62286715]
[1644763587410,1.62712,2921.2,2921.0,5.62286715]
[1644763588013,1.02712,2921.2,2921.0,5.62286715]
[1644763588224,3.18303571,2921.1,2921.0,5.62286715]
[1644763588576,1.02712,2921.2,2921.0,5.62286715]
[1644763588577,0.1711,2921.2,2921.0,5.62286715]
[1644763588763,4.97788507,2921.3,2921.0,5.6337053]
[1644763589559,0.85912324,2921.4,2921.0,5.6337053]
[1644763589760,0.00098533,2921.6,2921.0,5.62286715]
[1644763589962,0.00098533,2921.6,2921.1,0.00253502]
[1644763590559,0.01180597,2921.9,2921.1,0.00253502]
[1644763590764,0.0009712,2921.9,2921.2,0.8556]
[1644763590961,0.0009712,2921.9,2921.3,0.00253502]
[1644763591164,0.0118064,2921.9,2921.3,0.00107124]
[1644763591466,0.0118064,2921.9,2921.3,0.7984]
[1644763591664,0.0118064,2921.9,2921.4,0.00107124]
[1644763591864,0.0118064,2921.9,2921.5,0.85555]
[1644763592066,0.0009712,2921.9,2921.5,0.85555]
[1644763592313,0.00730814,2921.9,2921.5,0.85555]
[1644763592813,0.00730814,2921.9,2921.5,21.04555]
[1644763593014,0.00730814,2921.9,2921.6,21.60094]
[1644763593213,0.0009712,2921.9,2921.7,2.31077]
[1644763593615,0.01181208,2921.9,2921.8,3.68160377]
[1644763593813,0.01181208,2921.9,2921.8,3.5]
[1644763594016,0.01181208,2921.9,2921.8,4.35538]
[1644763594213,0.01181208,2921.9,2921.8,0.85538]
[1644763594413,0.0009712,2921.9,2921.8,0.85538]
[1644763597162,0.0009712,2921.9,2921.8,1.02648]
[1644763598564,0.0009712,2921.9,2921.8,0.85538]
[1644763602712,0.0009712,2921.9,2921.7,1.71077]
[1644763603113,0.0009712,2921.9,2921.3,4.2204]
[1644763603318,0.0009712,2921.9,2921.5,0.85566]
[1644763604361,0.01181208,2921.9,2921.5,0.85566]
[1644763605365,0.0009712,2921.9,2921.5,0.85566]
[1644763605565,0.01181208,2921.9,2921.5,0.85566]
[1644763605764,0.01084088,2921.9,2921.5,0.85566]
[1644763606368,0.01084088,2921.9,2921.5,6.47852715]
[1644763606564,3.27867483,2922.2,2921.5,6.47852715]
[1644763606766,0.01084088,2921.9,2921.5,6.47852715]
[1644763607813,3.29894346,2922.2,2921.5,6.47852715]
[1644763607814,3.31508355,2922.2,2921.5,6.47852715]
[1644763608014,0.01084088,2921.9,2921.5,6.47852715]
[1644763608924,3.31508355,2922.2,2921.5,6.47852715]
[1644763609120,0.01084088,2921.9,2921.5,6.47852715]
[1644763610122,0.1711,2922.1,2921.5,6.47852715]
[1644763610322,0.01084088,2921.9,2921.5,6.47852715]
[1644763610521,0.00113167,2921.8,2921.5,6.47852715]
[1644763614683,0.00113167,2921.8,2921.6,1.71104]
[1644763614927,0.00113167,2921.8,2921.7,0.85546]
[1644763615126,0.00113167,2921.8,2921.7,1.02656]
[1644763615328,0.00113167,2921.8,2921.7,0.85546]
[1644763616631,0.00113167,2921.8,2921.7,1.45546]
[1644763616833,0.01084099,2921.9,2921.8,2.7]
[1644763617027,0.01084099,2921.9,2921.8,6.28827944]
[1644763617235,0.01084099,2921.9,2921.8,2.73688]
[1644763617432,0.4984,2922.5,2921.8,2.73688]
[1644763617633,0.01084083,2922.0,2921.9,0.85533]
[1644763617833,0.01084083,2922.0,2921.9,2.31071]
[1644763618605,0.4984,2922.5,2922.0,2.86626]
[1644763618806,0.01084068,2922.1,2922.0,2.86626]
[1644763619705,0.4984,2922.5,2922.0,2.86626]
[1644763620006,0.4984,2922.5,2922.1,0.85543]
[1644763620007,0.01084052,2922.2,2922.1,0.85543]
[1644763620206,0.01084052,2922.2,2922.1,20.74543]
[1644763620406,0.01084052,2922.2,2922.1,24.41778758]
[1644763620604,0.01084052,2922.2,2922.1,0.85543]
[1644763621003,0.4984,2922.5,2922.1,0.85543]
[1644763621207,0.4984,2922.5,2922.1,1.71069]
[1644763621208,0.01084037,2922.3,2922.1,1.71069]
[1644763622206,0.4984,2922.5,2922.1,1.71069]
[1644763622428,0.01084029,2922.3,2922.2,0.85535]
[1644763623430,0.4984,2922.5,2922.2,0.85535]
[1644763623627,0.0095799,2922.4,2922.2,0.85535]
[1644763624230,0.0095799,2922.4,2922.2,1.15535]
[1644763624432,0.4984,2922.5,2922.2,1.15535]
[1644763624630,0.4984,2922.5,2922.3,1.71067]
[1644763624828,0.00957983,2922.4,2922.3,1.71067]
[1644763625629,0.00957983,2922.4,2922.3,2.01067]
[1644763625831,0.4984,2922.5,2922.3,2.01067]
[1644763626062,0.50797977,2922.5,2922.3,2.01067]
[1644763626871,0.4984,2922.5,2922.3,2.01067]
[1644763627268,0.5079797,2922.5,2922.3,2.01067]
[1644763627971,0.5079797,2922.5,2922.3,21.90067]
[1644763628168,0.4984,2922.5,2922.4,0.171]
[1644763628368,0.4984,2922.5,2922.4,20.061]
[1644763628369,0.50810664,2922.5,2922.4,20.061]
[1644763628768,0.50810664,2922.5,2922.4,0.171]
[1644763629168,0.50810664,2922.5,2922.4,20.061]
[1644763629367,0.171,2923.3,2922.4,20.061]
[1644763629572,0.171,2923.3,2922.5,7.31533]
[1644763629834,7.48,2923.5,2922.7,21.59981]
[1644763630021,0.5,2922.9,2922.8,20.19]
[1644763630221,7.48,2923.5,2922.8,20.19]
[1644763630622,0.5,2923.0,2922.8,20.19]
[1644763630824,0.5,2923.0,2922.9,21.59986]
[1644763631625,3.50376445,2923.9,2922.9,21.59986]
[1644763631828,0.00376445,2923.9,2922.9,24.24023976]
[1644763632028,0.00970036,2923.1,2923.0,22.45434]
[1644763632228,0.00376445,2923.9,2923.2,19.89]
[1644763632430,0.00376445,2923.9,2923.4,19.89]
[1644763632626,0.00376445,2923.9,2923.5,19.89]
[1644763632827,0.00376445,2923.9,2923.6,20.74482]
[1644763633127,0.00376445,2923.9,2923.6,0.85482]
[1644763633330,1.45881866,2923.9,2923.6,0.85482]
[1644763633772,1.45505421,2923.8,2923.6,0.85482]